bitfinex-derivatives/quotes_ETHF0:USTF0_20250123
["timestamp","ask_amount","ask_price","bid_price","bid_amount"]
[1737645708542,12.75447755,3240.2,3240.1,2e-06]
[1737645709048,12.13714755,3240.2,3240.1,2e-06]
[1737645709242,3.2078,3240.2,3240.1,2e-06]
[1737645709842,7.18719557,3240.2,3240.1,2e-06]
[1737645710039,3.2078,3240.2,3240.1,2e-06]
[1737645710243,3.2078,3240.2,3240.1,41.417352]
[1737645710641,3.2078,3240.2,3240.1,40.800002]
[1737645711745,0.31124968,3243.5,3240.1,40.800002]
[1737645711746,3.2098,3242.1,3240.1,49.007802]
[1737645711945,3.2078,3242.1,3241.1,5.05133776]
[1737645712343,4.07755679,3242.0,3240.9,3.2078]
[1737645712542,3.2078,3242.7,3241.4,3.2078]
[1737645712744,8.7661,3243.3,3241.4,3.2078]
[1737645713044,8.7661,3243.3,3241.8,3.2078]
[1737645713045,3.2078,3242.9,3241.8,3.2078]
[1737645713241,0.00462927,3242.4,3241.2,3.2078]
[1737645713543,0.00462927,3242.4,3242.0,0.00462927]
[1737645713948,0.00462927,3242.4,3242.3,5.05133776]
[1737645714241,0.00462927,3242.4,3242.2,3.2078]
[1737645714641,0.00462927,3242.4,3242.3,5.05133776]
[1737645714845,3.2078,3244.1,3242.3,5.05133776]
[1737645715045,3.2078,3244.1,3242.7,3.2078]
[1737645715351,4.08460585,3244.0,3242.7,3.2078]
[1737645715549,0.6167,3243.5,3242.7,3.2078]
[1737645715747,3.2078,3243.4,3242.7,3.2078]
[1737645716147,3.21242927,3243.4,3242.7,3.2078]
[1737645716543,3.21242927,3243.4,3242.1,40.8]
[1737645716850,3.21242927,3243.4,3242.5,3.2078]
[1737645717243,0.00462927,3243.4,3242.9,3.2078]
[1737645717442,0.00462927,3243.4,3243.3,3.82454]
[1737645717646,3.2078,3244.2,3243.3,3.82454]
[1737645717852,3.82424,3244.9,3243.8,3.2078]
[1737645718051,3.2078,3245.3,3244.2,3.2078]
[1737645718245,0.6164,3245.1,3244.2,3.2078]
[1737645718450,7.14651169,3245.4,3242.2,4.46916]
[1737645718451,3.2078,3244.7,3243.8,3.2078]
[1737645718647,3.2078,3244.1,3243.4,3.2078]
[1737645719150,4.5434886,3244.0,3243.9,9.27e-06]
[1737645719343,5.61661,3244.0,3243.9,9.27e-06]
[1737645719851,9.69752306,3244.0,3243.9,9.27e-06]
[1737645720453,4.69752306,3244.0,3243.9,9.27e-06]
[1737645720647,9.69752306,3244.0,3243.9,9.27e-06]
[1737645721056,4.69752306,3244.0,3243.9,9.27e-06]
[1737645721353,0.61661,3244.0,3243.9,9.27e-06]
[1737645721654,3.2078,3244.1,3243.9,9.27e-06]
[1737645722155,4.01414402,3244.0,3243.9,9.27e-06]
[1737645722343,0.0046239,3244.3,3243.9,9.27e-06]
[1737645722547,3.2078,3245.4,3244.0,5.04437317]
[1737645722748,3.2078,3245.4,3244.6,5.04437317]
[1737645723056,3.82403,3246.1,3245.0,3.2078]
[1737645723250,3.2078,3246.1,3245.0,3.2078]
[1737645723449,0.61617,3246.3,3245.1,0.6164]
[1737645723643,3.2078,3246.5,3245.7,3.2078]
[1737645724048,3.2078,3246.1,3245.2,0.00462149]
[1737645724258,0.61632,3245.6,3245.2,0.00462149]
[1737645724557,3.2078,3245.3,3245.2,0.00462149]
[1737645724742,3.82416,3245.3,3245.2,0.00462149]
[1737645725351,12.87080923,3245.3,3245.2,1.49e-06]
[1737645725551,7.87080923,3245.3,3245.2,1.49e-06]
[1737645725756,3.0821,3247.2,3245.2,1.49e-06]
[1737645725757,3.2078,3245.7,3245.2,1.49e-06]
[1737645725955,0.61631,3245.6,3245.2,1.49e-06]
[1737645726154,3.2078,3245.7,3245.2,1.49e-06]
[1737645726349,3.82416,3245.3,3245.2,1.49e-06]
[1737645726650,7.77225131,3245.3,3245.2,1.49e-06]
[1737645726852,12.77225131,3245.3,3245.2,1.49e-06]
[1737645727243,12.77225131,3245.3,3244.0,0.002]
[1737645727244,0.61659,3244.1,3244.0,0.002]
[1737645727452,3.2078,3244.1,3243.0,3.2078]
[1737645727653,3.2078,3243.7,3243.0,3.2078]
[1737645727860,3.2078,3243.9,3243.0,3.2078]
[1737645728056,3.2078,3243.4,3242.2,0.002]
[1737645728249,3.2078,3243.0,3241.5,3.2078]
[1737645728448,5.04437317,3244.3,3241.5,3.2078]
[1737645728449,3.2078,3242.4,3241.5,3.2078]
[1737645728854,3.2078,3242.4,3241.9,0.00462149]
[1737645729251,3.2078,3242.0,3241.9,0.00462149]
[1737645729453,3.2078,3242.0,3239.9,0.3088]
[1737645729454,0.6171,3241.4,3241.3,11.05975951]
[1737645729757,7.89513233,3241.4,3241.3,10.42276951]
[1737645729966,12.27803233,3241.4,3240.1,0.002]
[1737645730261,3.2078,3240.7,3239.7,40.8]
[1737645730456,0.61727,3240.6,3239.3,3.2078]
[1737645730662,3.2078,3239.8,3238.6,19.16949239]
[1737645730964,3.2078,3239.3,3238.7,3.2078]
[1737645731551,3.2078,3240.0,3238.7,0.00462884]
[1737645731751,3.21242884,3240.5,3238.8,3.2078]
[1737645731955,3.2078,3239.7,3238.8,3.2078]
[1737645732159,3.96804459,3239.9,3239.2,3.2078]
[1737645732354,3.2078,3240.4,3239.7,3.2078]
[1737645732569,0.00462884,3240.5,3240.1,3.2078]
[1737645732868,3.2078,3240.4,3239.6,3.2078]
[1737645733166,0.00462884,3240.5,3239.6,3.2078]
[1737645733377,3.2078,3240.4,3239.6,3.2078]
[1737645733658,0.61743,3239.7,3238.5,3.2078]
[1737645733866,3.2078,3240.0,3238.7,0.00462884]
[1737645734063,3.2078,3240.0,3238.7,3.21242884]
[1737645734261,3.2078,3240.0,3238.8,40.8]
[1737645734455,3.2078,3239.5,3238.7,0.00462884]
[1737645734655,0.6175,3239.4,3238.7,0.00462884]
[1737645734867,3.2078,3239.5,3238.7,0.00462884]
[1737645735258,3.2078,3240.4,3238.9,3.2078]
[1737645735458,3.2078,3240.4,3239.3,3.2078]
[1737645735860,0.61741,3239.8,3238.7,0.00462884]
[1737645736160,0.61751,3239.3,3238.7,0.00462884]
[1737645736359,4.06715705,3239.7,3238.7,0.00462884]
[1737645736666,3.2078,3239.6,3238.7,0.00462884]
[1737645737056,0.00462884,3240.5,3238.8,0.61758]
[1737645737057,3.96313868,3239.9,3238.8,0.61758]
[1737645737263,3.2078,3239.6,3238.7,0.00462884]
[1737645737467,3.2078,3240.0,3239.1,3.2078]
[1737645737761,3.2078,3239.2,3238.7,0.00462884]
[1737645738154,3.2078,3239.9,3238.7,3.21242884]
[1737645738360,3.2078,3239.8,3238.7,0.00462884]
[1737645738558,3.2078,3239.0,3238.7,0.00462884]
[1737645738861,0.6176,3238.8,3238.7,0.00462884]
[1737645739165,0.6176,3238.8,3237.2,0.6179]
[1737645739166,3.2078,3239.0,3237.5,0.13271389]
[1737645739356,3.2078,3238.5,3237.7,0.61781]
[1737645739559,3.2078,3238.5,3237.9,0.61777]
[1737645739756,3.2078,3238.5,3237.8,40.8]
[1737645740264,3.2078,3238.1,3237.5,0.13071389]
[1737645740465,3.82563,3237.6,3237.5,0.13071389]
[1737645740670,3.2078,3237.6,3236.5,3.2078]
[1737645740875,3.2078,3236.9,3235.6,3.33862063]
[1737645741162,3.2078,3236.1,3235.6,0.13082063]
[1737645741370,3.2078,3235.7,3235.6,0.13082063]
[1737645741666,3.82599,3235.7,3235.6,0.13082063]
[1737645741864,3.82599,3235.7,3235.0,9.55281141]
[1737645741865,0.61821,3235.6,3235.5,0.00462884]
[1737645742082,12.24150306,3235.7,3235.0,9.55281141]
[1737645742365,12.24150306,3235.7,3232.9,8.12623545]
[1737645742366,3.2078,3235.2,3233.5,9.55281141]
[1737645742668,3.2078,3233.9,3233.6,0.06185056]
[1737645742869,3.2078,3233.9,3233.5,9.55281141]
[1737645743063,0.61859,3233.6,3233.5,9.55281141]
[1737645743263,3.2078,3233.9,3233.4,0.00463627]
[1737645743264,0.61861,3233.5,3233.4,0.00463627]
[1737645743466,0.61863,3233.4,3233.3,8.0155527]
[1737645743663,8.2078,3233.5,3233.3,8.0155527]
[1737645743861,4.71491271,3233.4,3233.3,8.0155527]
[1737645744064,0.61863,3233.4,3233.3,8.0155527]
[1737645744265,3.2078,3233.5,3233.3,8.0155527]
[1737645744665,0.00463627,3234.0,3233.4,0.61862]
[1737645744969,0.00463627,3234.0,3233.9,0.61854]
[1737645745161,3.2078,3235.2,3233.9,8.25217317]
[1737645745661,1.74747407,3235.2,3235.1,40.8]
[1737645745869,3.2078,3235.7,3235.1,40.8]
[1737645746074,3.2078,3236.9,3235.6,3.2078]
[1737645746265,3.82569,3237.3,3236.2,3.8259]
[1737645746466,3.2078,3237.9,3236.7,3.2078]
[1737645746769,3.2078,3238.3,3237.3,3.2078]
[1737645746973,0.00463627,3237.6,3236.8,3.2078]
[1737645747272,0.00463627,3237.6,3236.5,5.04437317]
[1737645747273,0.00463627,3237.6,3236.7,3.2078]
[1737645747461,0.00463627,3237.6,3236.5,5.04437317]
[1737645747662,0.00463627,3237.6,3236.9,0.00463627]
[1737645747868,0.00463627,3237.6,3237.1,3.2078]
[1737645748063,0.00463627,3237.6,3237.5,3.2078]
[1737645748470,3.21243627,3237.6,3236.9,0.00463627]
[1737645748776,3.98532208,3237.6,3236.9,0.00463627]
[1737645749074,0.00463627,3237.6,3236.9,0.00463627]
[1737645749376,0.00463627,3237.6,3237.1,0.61791]
[1737645749675,0.00463627,3237.6,3237.5,3.2078]
[1737645750074,4.10415714,3237.6,3237.0,3.2078]
[1737645750373,0.00463627,3237.6,3237.0,3.2078]
[1737645750570,0.00463627,3237.6,3237.4,3.2078]
[1737645751077,0.00463627,3237.6,3236.9,0.00463627]
[1737645751377,3.2078,3237.4,3236.9,0.00463627]
[1737645751673,3.82574,3237.0,3236.9,0.00463627]
[1737645752070,3.2078,3237.0,3236.9,0.00463627]
[1737645752375,0.00463627,3237.6,3236.9,3.21243627]
[1737645752880,0.00463627,3237.6,3237.3,3.2078]
[1737645753174,0.00463627,3237.6,3237.3,3.82568]
[1737645753478,0.00463627,3237.6,3237.3,3.2078]
[1737645753778,0.00463627,3237.6,3236.9,3.21243627]
[1737645754077,0.00463627,3237.6,3237.3,3.2078]
[1737645754576,0.00463627,3237.6,3237.5,0.61785]
[1737645754774,0.00463627,3237.6,3237.3,8.2078]
[1737645754775,3.2078,3239.2,3237.3,8.2078]
[1737645754978,3.2078,3239.2,3238.2,3.2078]
[1737645755269,3.2078,3238.3,3237.8,3.2078]
[1737645755469,3.2078,3237.9,3237.2,3.2078]
[1737645755670,0.61788,3237.4,3236.9,0.00463627]
[1737645755864,3.95378926,3238.2,3236.9,0.00463627]
[1737645755865,3.2078,3237.9,3236.9,0.00463627]
[1737645756069,0.00463627,3237.9,3237.5,3.2078]
[1737645756476,0.00463627,3237.9,3237.1,3.2078]
[1737645756986,0.00463627,3237.9,3237.1,3.82572]
[1737645757169,0.00463627,3237.9,3237.7,3.2078]
[1737645758377,0.00463627,3237.9,3237.7,44.0078]
[1737645758571,0.00463627,3237.9,3237.7,41.21627593]
[1737645758776,3.2078,3239.2,3237.7,41.21627593]
[1737645758777,3.2078,3239.2,3237.7,51.2606491]
[1737645758973,3.2078,3239.2,3238.7,3.2078]
[1737645759476,3.2078,3238.8,3238.1,3.2078]
[1737645760071,3.21243627,3238.8,3238.1,3.21243627]
[1737645760271,3.21243627,3238.8,3238.2,5.04437317]
[1737645760477,0.00463627,3238.8,3238.2,8.25217317]
[1737645760683,0.00463627,3238.8,3238.2,3.2078]
[1737645761073,0.00463627,3238.8,3238.2,8.25217317]
[1737645761276,3.2078,3238.6,3238.1,0.00463627]
[1737645761571,0.00463627,3238.8,3238.1,0.00463627]
[1737645761780,3.2078,3238.6,3238.1,0.00463627]
[1737645762080,3.98687931,3238.7,3238.1,0.00463627]
[1737645762276,0.00463627,3238.8,3238.1,0.00463627]
[1737645762476,0.00463627,3238.8,3238.3,3.2078]
[1737645762671,0.00463627,3238.8,3238.7,3.82542]
[1737645762980,2.735,3240.7,3238.7,3.2078]
[1737645763177,3.2078,3240.4,3239.4,0.61747]
[1737645763378,3.2078,3240.4,3239.3,3.2078]
[1737645763671,3.2078,3240.4,3238.2,4.33506]
[1737645763672,0.61749,3239.4,3239.2,3.2078]
[1737645763877,3.2078,3239.6,3239.2,3.2078]
[1737645764073,3.2078,3240.4,3239.2,3.2078]
[1737645764270,0.00461521,3239.6,3239.5,0.61747]
[1737645764475,3.2078,3240.4,3239.5,3.2078]
[1737645764979,0.04903749,3240.3,3239.3,40.8]
[1737645765277,0.06171696,3240.6,3239.0,3.21243627]
[1737645765479,3.2078,3239.7,3239.0,3.21243627]
[1737645765675,3.82534,3239.1,3239.0,0.00463627]
[1737645765876,1.54338,3240.2,3239.0,0.00463627]
[1737645765877,3.2078,3239.5,3239.0,0.00463627]
[1737645766086,4.07093404,3240.0,3239.0,0.00463627]
[1737645766283,4.07093404,3240.4,3239.6,0.61743]
[1737645766478,0.61718,3241.1,3239.7,3.2078]
[1737645766680,3.2078,3240.9,3239.8,40.8]
[1737645766876,3.2078,3240.9,3239.3,3.2078]
[1737645766877,4.05750253,3240.8,3239.3,3.2078]
[1737645767082,0.04906535,3241.0,3240.0,0.61736]
[1737645767382,0.66631535,3240.7,3239.7,3.2078]
[1737645767579,0.04906535,3240.6,3239.7,3.2078]
[1737645767879,0.04903842,3240.5,3239.3,3.2078]
[1737645768087,4.71975075,3241.0,3239.8,0.6174]
[1737645768276,0.04906926,3240.9,3240.2,3.2078]
[1737645768593,0.04906161,3240.8,3240.2,3.82511]
[1737645768887,3.2078,3241.4,3240.2,3.2078]
[1737645769090,0.61721,3240.9,3240.2,3.2078]
[1737645769295,0.04904647,3240.8,3240.2,3.2078]
[1737645769587,3.2078,3241.4,3240.2,3.2078]
[1737645769787,0.04905404,3241.3,3240.2,3.2078]
[1737645770180,3.2078,3241.0,3240.2,3.2078]
[1737645770888,3.2078,3240.6,3239.5,3.56035686]
[1737645771082,0.61737,3240.0,3239.5,3.2078]
[1737645771281,3.2078,3240.6,3239.5,3.2078]
[1737645771684,0.61721,3240.9,3239.5,3.2078]
[1737645771889,0.0490332,3240.5,3240.3,3.2078]
[1737645772091,0.0490332,3240.5,3240.4,0.61729]
[1737645772291,3.2078,3241.4,3240.3,3.2078]
[1737645772493,0.04901789,3241.3,3240.7,3.2078]
[1737645773093,2.31245204,3242.9,3240.7,0.00462899]
[1737645773094,3.2078,3241.4,3240.7,0.00462899]
[1737645773287,0.04901789,3241.3,3240.7,0.00462899]
[1737645773489,4.03541721,3241.7,3241.2,0.61714]
[1737645773689,0.64156457,3241.7,3241.6,0.61707]
[1737645773886,2.31245204,3242.9,3242.1,0.61696]
[1737645774090,2.31245204,3242.9,3242.5,3.2078]
[1737645774694,0.04901282,3242.8,3242.7,0.61686]
[1737645774891,2.31245204,3242.9,3242.5,3.2078]
[1737645775200,0.04866006,3242.8,3242.5,3.2078]
[1737645775587,2.31245204,3242.9,3242.5,3.2078]
[1737645775784,0.61689,3242.5,3242.4,0.00462899]
[1737645776186,5.61689,3242.5,3242.4,0.00462899]
[1737645776388,0.6169,3242.5,3241.4,3.2078]
[1737645776590,3.2078,3242.6,3242.0,0.61699]
[1737645776793,2.31245204,3242.9,3242.2,3.2078]
[1737645776997,2.31245204,3242.9,3242.6,3.2078]
[1737645777298,2.31245204,3242.9,3242.6,44.0078]
[1737645777592,3.2078,3243.9,3242.9,0.6168]
[1737645777791,3.2078,3244.3,3243.5,3.2078]
[1737645778891,3.2078,3243.7,3242.6,0.002]
[1737645779083,3.2078,3242.9,3242.4,3.21242899]
[1737645779287,3.82462,3242.9,3242.4,3.21242899]
[1737645779486,3.2078,3243.7,3242.4,3.21242899]
[1737645779685,3.2078,3243.3,3242.4,3.21242899]
[1737645779891,3.2078,3242.9,3242.4,3.21242899]
[1737645780091,3.82469,3242.5,3242.4,0.00462899]
[1737645780295,3.2078,3242.5,3242.4,0.00462899]
[1737645780493,12.79639886,3242.5,3242.4,8.99e-06]
[1737645780896,12.79639886,3242.5,3240.5,0.61726]
[1737645780897,17.27222406,3242.5,3240.5,0.35960003]
[1737645781102,0.61731,3240.3,3240.2,0.002]
[1737645781295,0.04834203,3240.3,3238.7,0.35109851]
[1737645781601,3.2078,3239.9,3238.5,3.2078]
[1737645781793,3.2078,3239.9,3238.9,3.2078]
[1737645781987,3.2078,3239.9,3239.3,3.2078]
[1737645782189,0.00462899,3239.5,3239.1,5.04437317]
[1737645782402,0.61719,3241.0,3239.5,0.61746]
[1737645782594,3.2078,3241.1,3240.3,8.25217317]
[1737645782800,0.61706,3241.7,3240.3,8.25217317]
[1737645782993,0.04831872,3241.0,3240.3,5.66167317]
[1737645783302,0.04831872,3241.6,3240.1,3.2078]
[1737645783604,0.04835758,3241.5,3240.9,3.2078]
[1737645783899,2.8421,3242.4,3240.9,3.2078]
[1737645783900,3.2078,3242.5,3241.4,3.2078]
[1737645784099,3.2078,3242.5,3242.0,3.2078]
[1737645784100,0.04834528,3242.4,3242.0,3.2078]
[1737645784408,2.31245204,3243.1,3242.3,3.2078]
[1737645784596,2.31245204,3243.1,3243.0,8.86897317]
[1737645784792,2.2043949,3243.1,3243.0,5.04437317]
[1737645785006,1.57856395,3243.1,3243.0,5.04437317]
[1737645785205,1.04227312,3243.5,3243.1,0.61677]
[1737645785397,1.04227312,3243.5,3242.8,3.2078]
[1737645786594,0.61673,3243.4,3242.5,40.8]
[1737645786800,4.60225619,3243.4,3242.6,3.2078]
[1737645787002,1.04227312,3243.5,3243.0,3.2078]
[1737645787395,1.04227312,3243.5,3243.4,3.82452]
[1737645787596,1.04227312,3243.5,3243.4,3.2078]
[1737645787793,5.48340322,3243.7,3243.4,3.2078]
[1737645788106,0.61662,3244.0,3242.8,3.2078]
[1737645788302,0.61669,3243.6,3242.7,3.2078]
[1737645788498,3.2078,3243.7,3242.7,3.2078]
[1737645788902,0.61672,3243.5,3242.7,3.2078]
[1737645789109,3.2078,3244.3,3243.4,5.04437317]
[1737645789298,3.2078,3244.3,3243.7,3.2078]
[1737645789495,0.61657,3244.2,3243.2,3.2078]
[1737645789702,3.2078,3244.3,3243.7,0.00462899]
[1737645790227,3.96397683,3244.2,3243.7,0.00462899]
[1737645790408,3.2078,3244.3,3243.7,0.00462899]
[1737645790602,3.2078,3244.8,3243.7,0.00462899]
[1737645790802,0.61665,3243.8,3243.7,0.00462899]
[1737645791211,3.2078,3243.9,3243.7,0.00462899]
[1737645791704,0.61665,3243.8,3243.7,0.00462899]
[1737645792808,5.61665,3243.8,3243.7,0.00462899]
[1737645793002,4.606792,3243.8,3243.7,0.00462899]
[1737645793513,3.990142,3243.8,3243.7,0.00462899]
[1737645793814,3.2078,3243.9,3243.7,0.00462899]
[1737645794005,0.61665,3243.8,3243.7,0.00462899]
[1737645794405,9.5740141,3243.8,3243.7,0.00462899]
[1737645794607,9.5740141,3243.8,3242.5,0.002]
[1737645794608,8.9573641,3243.8,3242.5,0.002]
[1737645794913,3.2078,3242.9,3241.0,3.2078]
[1737645795107,0.6172,3241.0,3240.7,0.002]
[1737645795318,3.2078,3241.1,3240.3,3.2078]
[1737645796012,3.2078,3240.7,3240.4,0.00462899]
[1737645796212,0.00462899,3241.0,3240.4,0.00462899]
[1737645796415,0.62180899,3241.0,3240.4,0.00462899]
[1737645796711,0.00462899,3241.0,3240.4,0.00462899]
[1737645797121,0.00462899,3241.0,3240.5,3.2078]
[1737645797304,3.2078,3240.9,3240.4,0.00462899]
[1737645797507,0.61728,3240.5,3240.4,0.00462899]
[1737645797704,3.2078,3240.9,3240.4,0.00462899]
[1737645798004,0.00462899,3241.0,3240.4,0.00462899]
[1737645798205,0.61724,3240.8,3240.4,0.00462899]
[1737645798417,0.61728,3240.5,3240.4,0.00462899]
[1737645798806,5.61728,3240.5,3240.4,8.99e-06]
[1737645799016,9.69037239,3240.5,3240.4,8.99e-06]
[1737645799411,3.2078,3240.6,3240.4,8.99e-06]
[1737645799710,3.21242899,3241.0,3240.4,3.20780899]
[1737645800018,0.00462899,3241.0,3240.4,3.20780899]
[1737645800203,3.2078,3242.8,3240.9,3.2078]
[1737645800407,3.2078,3243.0,3241.8,3.2078]
[1737645800813,3.2078,3242.6,3241.8,3.2078]
[1737645801012,0.61699,3242.0,3241.8,3.2078]
[1737645801210,4.08194391,3242.5,3241.5,3.2078]
[1737645801410,4.08194391,3242.5,3241.1,3.2078]
[1737645801615,0.00462,3242.2,3241.6,3.21242899]
[1737645801813,0.00462,3242.2,3241.6,0.00462899]
[1737645802216,0.00462,3242.2,3241.8,3.2078]
[1737645802413,0.61705,3241.7,3241.6,0.00462899]
[1737645802820,3.97871799,3241.7,3240.6,3.2098]
[1737645803026,3.97871799,3241.7,3240.6,3.2078]
[1737645803027,3.2078,3241.4,3240.6,3.2078]
[1737645803320,3.2078,3241.4,3240.2,3.2078]
[1737645803616,4.02071344,3241.3,3239.6,3.0026]
[1737645803813,3.2078,3241.0,3239.6,6.2104]
[1737645804007,0.61738,3240.0,3239.6,3.2078]
[1737645804207,0.61743,3239.7,3239.6,3.2078]
[1737645804416,3.2078,3240.0,3238.8,3.2078]
[1737645804623,3.2078,3240.4,3239.3,0.00462899]
[1737645804809,0.00462899,3240.0,3239.3,0.00462899]
[1737645805414,0.61743,3239.7,3239.3,0.00462899]
[1737645805618,0.61749,3239.4,3239.3,0.00462899]
[1737645806225,3.2078,3239.6,3239.3,0.00462899]
[1737645806520,0.61745,3239.6,3239.3,0.00462899]
[1737645806720,0.61749,3239.4,3239.3,0.00462899]
[1737645806923,3.21242899,3240.0,3239.3,0.00462899]
[1737645807120,4.01840901,3239.9,3239.3,0.00462899]
[1737645807321,3.21242899,3240.0,3239.3,0.00462899]
[1737645807513,0.61742,3239.8,3239.3,0.00462899]
[1737645807736,3.21242899,3240.0,3239.3,0.00462899]
[1737645807918,0.61749,3239.4,3239.3,0.00462899]
[1737645808423,3.94407387,3239.4,3238.6,3.2078]
[1737645808620,0.61757,3239.0,3238.6,3.2078]
[1737645808823,3.2078,3239.1,3238.6,3.2078]
[1737645809021,0.61781,3237.7,3237.6,0.002]
[1737645809218,3.2078,3238.3,3237.5,3.2078]
[1737645809417,0.61773,3238.2,3237.5,3.82565]
[1737645809617,0.00462899,3238.2,3237.9,3.2078]
[1737645809926,0.00462899,3238.2,3237.3,3.38874199]
[1737645809927,0.00462899,3238.2,3237.4,3.2078]
[1737645810116,0.61776,3238.0,3237.4,3.2078]
[1737645810317,0.00462899,3238.2,3237.4,3.2078]
[1737645810624,0.61787,3237.4,3237.3,0.00462899]
[1737645810827,3.2078,3238.0,3237.3,0.00462899]
[1737645811019,0.61782,3237.7,3237.3,0.00462899]
[1737645811322,3.2078,3238.0,3237.3,0.00462899]
[1737645811719,0.00462899,3238.2,3237.3,0.00462899]
[1737645811920,2.8815,3239.1,3237.3,0.00462899]
[1737645811921,3.2078,3239.1,3237.9,3.2078]
[1737645812221,0.61757,3239.0,3237.9,3.2078]
[1737645812524,3.2078,3238.7,3237.9,3.2078]
[1737645812731,3.2078,3238.7,3237.5,3.2078]
[1737645812927,3.2078,3238.3,3237.5,3.2078]
[1737645813125,0.00462899,3238.4,3237.9,3.2078]
[1737645813325,3.2078,3239.6,3238.3,6.591913]
[1737645813519,0.61737,3240.1,3239.5,3.2078]
[1737645813724,10.14515612,3240.3,3239.5,3.2078]
[1737645813916,11.68847612,3240.3,3238.5,3.2078]
[1737645814127,0.6176,3238.9,3238.5,3.2078]
[1737645814321,1.54377,3239.3,3238.1,3.2078]
[1737645814517,0.61767,3238.5,3238.4,0.00462899]
[1737645814924,0.61761,3238.8,3238.4,0.00462899]
[1737645815121,3.21242,3239.0,3238.5,40.8]
[1737645815421,0.61766,3238.5,3238.4,8.99e-06]
[1737645815624,0.61787,3237.4,3237.3,1e-05]
[1737645815818,0.61787,3237.4,3235.7,3.0103]
[1737645815819,0.61808,3236.3,3235.7,3.0103]
[1737645816015,7.23657442,3237.4,3235.9,3.2078]
[1737645816214,3.2078,3237.4,3236.4,3.384113]
[1737645816426,3.2078,3238.0,3236.7,3.2078]
[1737645816723,0.61786,3237.5,3237.1,3.2078]
[1737645816926,0.6179,3237.2,3237.1,3.2078]
[1737645817129,0.61792,3237.1,3237.0,0.00462899]
[1737645817721,0.61792,3237.1,3237.0,8.99e-06]
[1737645817722,9.56309454,3237.1,3237.0,8.99e-06]
[1737645818121,4.56309454,3237.1,3237.0,8.99e-06]
[1737645818323,9.56309454,3237.1,3237.0,8.99e-06]
[1737645820025,8.99304884,3237.1,3234.7,3.2078]
[1737645820243,3.2078,3235.2,3234.3,3.2078]
[1737645820729,3.94853626,3235.1,3234.3,3.2078]
[1737645821237,0.61835,3234.9,3234.4,0.00463713]
[1737645821434,0.00463713,3235.0,3234.4,0.00463713]
[1737645821830,0.00463713,3235.0,3234.5,3.2078]
[1737645822525,0.00463713,3235.0,3234.9,3.2078]
[1737645822730,3.2078,3235.7,3234.9,3.2078]
[1737645822731,0.61807,3236.4,3235.1,0.61829]
[1737645822922,3.2078,3236.5,3234.9,6.591913]
[1737645823128,7.82408871,3236.5,3235.7,3.2078]
[1737645823332,0.61806,3236.4,3235.7,3.2078]
[1737645823628,3.2078,3236.5,3235.7,3.2078]
[1737645823836,3.2078,3236.5,3235.2,3.2078]
[1737645823837,0.6181,3236.2,3235.2,3.2078]
[1737645824030,0.6181,3236.2,3235.7,3.2078]
[1737645824234,0.61813,3236.0,3235.1,3.2078]
[1737645824425,3.97477235,3236.1,3235.1,3.2078]
[1737645824631,0.00463713,3236.4,3235.5,3.2078]
[1737645825431,3.2078,3237.5,3236.3,3.2078]
[1737645825630,0.61791,3237.2,3236.8,3.2078]
[1737645825829,0.61803,3236.6,3236.1,3.2078]
[1737645826029,3.2078,3236.3,3235.3,40.8]
[1737645826236,3.2078,3236.3,3234.4,3.384113]
[1737645826237,3.2078,3235.8,3234.5,9.2777]
[1737645826431,0.61828,3235.3,3234.5,3.2078]
[1737645826630,3.2078,3235.4,3234.5,3.2078]
[1737645826833,3.2078,3235.4,3234.8,0.00463713]
[1737645827041,3.82605,3235.4,3234.8,0.00463713]
[1737645827336,0.00463091,3235.5,3234.8,0.00463713]
[1737645827841,0.00463091,3235.5,3234.8,3.21243713]
[1737645828136,0.00463091,3235.5,3235.3,3.2078]
[1737645828536,0.00463091,3235.5,3235.2,3.2078]
[1737645828840,0.00463091,3235.5,3234.8,0.00463713]
[1737645829039,0.61831,3235.1,3234.8,0.00463713]
[1737645829334,3.2078,3235.3,3234.8,0.00463713]
[1737645829538,3.82614,3234.9,3234.8,0.00463713]
[1737645830036,3.2078,3234.9,3234.8,0.00463713]
[1737645830243,8.82614,3234.9,3234.8,0.00463713]
[1737645830540,0.61848,3234.2,3233.8,3.2078]
[1737645830736,3.82628,3234.2,3233.8,3.2078]
[1737645831037,3.2078,3234.6,3233.8,3.2078]
[1737645831439,3.2078,3234.2,3232.7,3.2078]
[1737645831632,3.2078,3233.4,3232.7,3.2078]
[1737645831944,3.2078,3233.0,3232.2,3.2078]
[1737645832134,0.61873,3232.9,3232.2,3.2078]
[1737645832340,4.01124569,3232.9,3232.7,3.38875013]
[1737645832539,3.57884566,3232.9,3232.7,4.00750013]
[1737645832726,3.21243713,3233.4,3232.7,0.00463713]
[1737645833434,0.00463713,3233.4,3233.0,3.2078]
[1737645833652,0.00463713,3233.4,3233.3,0.61865]
[1737645833937,0.00463713,3233.4,3233.0,3.2078]
[1737645834133,0.00463713,3233.4,3233.0,3.82651]
[1737645834336,0.61841,3234.6,3233.2,3.384113]
[1737645834536,3.384113,3235.7,3232.7,0.00463713]
[1737645834537,3.2078,3234.2,3233.1,3.2078]
[1737645834839,3.82637,3233.8,3232.8,40.8]
[1737645835332,3.2078,3234.2,3233.7,3.384113]
[1737645835544,2.8418,3235.2,3233.7,3.384113]
[1737645835545,3.2078,3234.9,3233.8,3.2078]
[1737645835735,3.2078,3234.9,3234.0,3.2078]
[1737645835928,0.61852,3234.0,3233.5,3.2078]
[1737645836128,0.00463091,3234.3,3233.5,3.2078]
[1737645836645,0.62310091,3234.3,3233.5,3.2078]
[1737645836941,0.00463091,3234.3,3233.5,3.2078]
[1737645837131,0.00463091,3234.3,3234.0,3.2078]
[1737645838036,0.00463091,3234.3,3234.1,0.61849]
[1737645838230,0.00463091,3234.3,3234.1,5.0]
[1737645838541,0.00463091,3234.3,3233.6,3.2078]
[1737645838730,0.61853,3234.0,3233.6,3.2078]
[1737645838932,0.00463091,3234.3,3233.6,3.2078]
[1737645839137,0.61823,3235.5,3234.4,0.61843]